Cogmind - Beta 9.6 @@@ ROGUE MODE // 2020.06.25 @ 13:04:45 Player: Demise Result: Destroyed by B-36 Bruiser with Hammer Performance ------------- Evolutions (0) 0 Regions Visited (4) 800 Robots Destroyed (41) 205 Value Destroyed (953) 953 Prototype IDs (0) 0 Alien Tech Used (0) 0 Bonus (-56) -56 TOTAL SCORE: 1902 Bonus ------- Friendly Fire -56 Cogmind --------- Core Integrity 0/250 Matter 279/300 Energy 250/250 System Corruption 0% Temperature Cool (2) Movement Treading (180) Ox1 Location -9/Mines Parts ------- > --- POWER (1) -------- Ion Engine > --- PROPULSION (2) --- Light Treads Light Treads > --- UTILITY (2) ------ Large Storage Unit Large Storage Unit > --- WEAPON (2) ------- Assault Rifle Autogun > --- INVENTORY (16) --- Light Treads Large Storage Unit Large Battery (300) High-capacity Matter Pod (200) Improved Terrain Scanner Terrain Scan Processor ECM Suite Propulsion Shielding Light Armor Plating Beam Cannon Light Assault Rifle Autogun Autogun Autogun Grenade Launcher Mining Laser Peak State ------------ > --- POWER ------------ Light Nuclear Core > --- PROPULSION ------- Light Treads Light Treads > --- UTILITY ---------- Large Storage Unit Large Storage Unit > --- WEAPON ----------- Autogun Autogun > --- INVENTORY -------- Ion Engine Medium Storage Unit Large Battery Medium Matter Pod Improved Terrain Scanner Terrain Scan Processor ECM Suite Propulsion Shielding Light Armor Plating Beam Cannon Assault Rifle Light Assault Rifle Autogun Autogun Grenade Launcher Mining Laser [Rating: 13] Favorites ----------- Power Ion Engine Engine Ion Engine Power Core Light Nuclear Core Propulsion Light Treads Treads Light Treads Leg Aluminum Leg Wheel Wheel Utility Large Storage Unit Storage Large Storage Unit Weapon Autogun Ballistic Gun Autogun Special Weapon Mining Laser Build | -11 -10 -10 -10 -9 ------- Run | Scr Mat Min Exi Min Slots Evolved . | . . . . . Power . | . . . . . Propulsion . | . . . . . Utility . | . . . . . Weapon . | . . . . . Parts Attached 22 | 4 16 . 2 . Power 2 | . 2 . . . Engine 1 | . 1 . . . Core 1 | . 1 . . . Reactor . | . . . . . Propulsion 5 | 3 2 . . . Treads 2 | . 2 . . . Leg . | . . . . . Wheel 3 | 3 . . . . Hover . | . . . . . Flight . | . . . . . Utility 5 | 1 2 . 2 . Device . | . . . . . Storage 5 | 1 2 . 2 . Processor . | . . . . . Hackware . | . . . . . Protection . | . . . . . Artifact . | . . . . . Weapon 10 | . 10 . . . Energy Gun . | . . . . . Energy Cannon . | . . . . . Ballistic Gun 6 | . 6 . . . Ballistic Cannon . | . . . . . Launcher . | . . . . . Special Weapon 4 | . 4 . . . Impact Weapon . | . . . . . Slashing Weapon . | . . . . . Piercing Weapon . | . . . . . Special Melee Weapon . | . . . . . Unidentified Prototypes . | . . . . . Parts Lost 2 | . 2 . . . Power . | . . . . . Propulsion 2 | . 2 . . . Utility . | . . . . . Weapon . | . . . . . Highest Loss Streak 1 | . 1 . . . Average Slot Usage (%) 100 | . 100 100 100 100 Engine 10 | . 7 14 14 14 Core 3 | . 6 . . . Treads 24 | . 23 28 28 28 Wheel 3 | . 4 . . . Storage 28 | . 28 28 28 28 Ballistic Gun 26 | . 25 28 28 28 Special Weapon 1 | . 2 . . . Naked Turns . | . . . . . Heaviest Build 43 | 15 43 42 42 42 Greatest Support 40 | 20 40 40 40 40 Greatest Overweight (x) 1 | 1 1 1 1 1 Average Overweight (x) . | . . 1 1 1 Largest Inventory Capacity 16 | 8 16 16 16 16 Average Capacity 15 | 7 15 16 16 16 Most Carried 16 | 8 16 16 16 16 Average Carried 14 | 7 15 16 15 16 Final Capacity 16 | 8 16 16 16 16 Final Carried 16 | 8 16 16 16 16 Class Distribution -------------------- 100% | Mutant Dominant Class ---------------- Mutant | -10/Materials Mutant | -10/Mines Mutant | -10/Exiles Mutant | -9/Mines Resources | -11 -10 -10 -10 -9 ----------- Run | Scr Mat Min Exi Min Matter Collected 1372 | 381 714 175 . 102 Remotely . | . . . . . Salvage Created 1513 | 197 803 331 . 182 Parts 98 | 21 46 16 . 15 Haulers Intercepted 1 | . 1 . . . Recyclers Shooed 4 | 1 1 1 . 1 Parts Field Recycled . | . . . . . Retrieved Matter . | . . . . . Parts Self-Destructed . | . . . . . Prevented . | . . . . . Kills | -11 -10 -10 -10 -9 ------- Run | Scr Mat Min Exi Min Combat Hostiles Destroyed 22 | . 14 4 . 4 Guns 22 | . 14 4 . 4 Classes Destroyed 7 | 3 3 1 . . Worker 3 | 2 . 1 . . Tunneler 8 | 5 1 2 . . Hauler 1 | . 1 . . . Recycler 3 | 1 1 1 . . Operator 1 | . . 1 . . Watcher 3 | . 3 . . . Grunt 22 | . 14 4 . 4 Best Kill Streak 5 | 3 5 3 . 4 Combat Bots Only 4 | . 4 2 . 4 Max Kills in Single Turn 2 | 1 1 2 . 1 Gunslinging . | . . . . . Exploded . | . . . . . Melee . | . . . . . Uniques/NPCs Destroyed . | . . . . . Combat | -11 -10 -10 -10 -9 -------- Run | Scr Mat Min Exi Min Damage Taken 957 | . 553 298 . 106 Core 251 | . 152 67 . 32 Absorbed by Shields . | . . . . . Core Remaining (%) 100 | 100 . . . . Volleys Fired 127 | 28 59 25 . 15 Largest 2 | 2 2 2 . 2 Hottest 100 | 40 100 43 . 43 Shots Fired 246 | 56 110 50 . 30 Gun 238 | 56 102 50 . 30 Cannon . | . . . . . Launcher . | . . . . . Special 8 | . 8 . . . Kinetic 238 | 56 102 50 . 30 Thermal 8 | . 8 . . . Explosive . | . . . . . Electromagnetic . | . . . . . Robot Hit Streak 17 | 6 17 7 . 11 Robot Miss Streak 3 | 3 3 2 . 2 Penetration Max . | . . . . . Secondary Targets 2 | . . 2 . . Max Gunslinging Chain 1 | . . 1 . . Shots Hit Robots 160 | 33 74 33 . 20 Core Hits 71 | 16 34 15 . 6 Critical Hits 1 | 1 . . . . Critical Kills 1 | 1 . . . . Critical Parts Destroyed . | . . . . . Melee Attacks . | . . . . . Impact . | . . . . . Slashing . | . . . . . Piercing . | . . . . . Sneak Attacks . | . . . . . Combat Hostiles . | . . . . . Follow-up Attacks . | . . . . . Damage Inflicted 2048 | 293 956 476 . 323 Guns 2039 | 293 956 473 . 317 Cannons . | . . . . . Explosions . | . . . . . Melee . | . . . . . Ramming 9 | . . 3 . 6 Kinetic 2039 | 293 956 473 . 317 Thermal . | . . . . . Explosive . | . . . . . Electromagnetic . | . . . . . Impact . | . . . . . Slashing . | . . . . . Piercing . | . . . . . Highest Corruption . | . . . . . Average Corruption . | . . . . . Corruption Purged . | . . . . . Overload Shots . | . . . . . Overflow Damage . | . . . . . Projectiles . | . . . . . Explosions . | . . . . . Melee . | . . . . . Knockbacks . | . . . . . Impact . | . . . . . Kinetic . | . . . . . Secondary . | . . . . . Self-Inflicted Damage . | . . . . . Shots . | . . . . . Rammed 2 | . . 1 . 1 Targets Rammed 2 | . . 1 . 1 Kicked . | . . . . . Crushed . | . . . . . Highest Temperature 56 | . 56 36 . 11 Average Temperature 9 | . 10 10 . 2 Received Heat Transfer 534 | . 309 171 . 54 Siege Activations . | . . . . . Robots Corrupted . | . . . . . Combat Hostiles . | . . . . . Parts Fried 1 | . 1 . . . Impact Corruptions . | . . . . . Robots Melted . | . . . . . Combat Hostiles . | . . . . . Parts Melted . | . . . . . Heat Transferred . | . . . . . Parts Sabotaged . | . . . . . Parts Stolen . | . . . . . Parts Stripped . | . . . . . Power Chain Reactions . | . . . . . Missiles Intercepted . | . . . . . Alert | -11 -10 -10 -10 -9 ------- Run | Scr Mat Min Exi Min Peak Influence 166 | 40 166 150 . 80 Average Influence 58 | 23 52 101 . 35 Maximum Alert Level . | . . . . . Low Security (%) 100 | 100 100 100 . 100 Level 1 . | . . . . . Level 2 . | . . . . . Level 3 . | . . . . . Level 4 . | . . . . . Level 5 . | . . . . . High Security . | . . . . . Max Security . | . . . . . Squads Dispatched 3 | . 3 . . . Investigation 2 | . 2 . . . Extermination . | . . . . . Reinforcement 1 | . 1 . . . Assault . | . . . . . Garrison . | . . . . . Intercept . | . . . . . Construction Impeded . | . . . . . Haulers Reinforced . | . . . . . Stealth | -11 -10 -10 -10 -9 --------- Run | Scr Mat Min Exi Min Distress Signals 1 | . 1 . . . Communications Jammed . | . . . . . Distress Signals . | . . . . . Times Spotted 38 | . 29 4 . 5 Peak Tracking Total 4 | . 4 2 . 3 Tactical Retreats . | . . . . . Traps | -11 -10 -10 -10 -9 ------- Run | Scr Mat Min Exi Min Traps Triggered . | . . . . . Indirectly . | . . . . . Trap Hack Attempts . | . . . . . Triggered . | . . . . . Disarmed . | . . . . . Reprogrammed 6 | . 6 . . . Reused 1 | . 1 . . . Traps Extracted . | . . . . . Installed . | . . . . . Triggered 1 | . 1 . . . Machines | -11 -10 -10 -10 -9 ---------- Run | Scr Mat Min Exi Min Machines Disabled . | . . . . . Max in Single Turn . | . . . . . Machines Sabotaged . | . . . . . Garrisons Compromised . | . . . . . Overloaded Fab Kills . | . . . . . Fab Network Shutdowns . | . . . . . Hacking | -11 -10 -10 -10 -9 --------- Run | Scr Mat Min Exi Min Machines Accessed 9 | . 8 . 1 . Terminals 7 | . 7 . . . Fabricators . | . . . . . Repair Stations . | . . . . . Recycling Units 1 | . 1 . . . Scanalyzers . | . . . . . Garrison Access . | . . . . . Total Hacks 27 | . 26 . 1 . Successful 19 | . 18 . 1 . Failed 7 | . 7 . . . Catastrophic 1 | . 1 . . . Database Lockouts 2 | . 2 . . . Manual 23 | . 23 . . . Terminals 25 | . 25 . . . Fabricators . | . . . . . Repair Stations . | . . . . . Recycling Units 1 | . 1 . . . Scanalyzers . | . . . . . Garrison Access . | . . . . . Terminal Hacks 7 | . 6 . 1 . Record 1 | . . . 1 . Part Schematic 2 | . 2 . . . Locate Traps 2 | . 2 . . . Reprogram Traps 1 | . 1 . . . Hauler Manifests 1 | . 1 . . . Fabricator Hacks . | . . . . . Repair Station Hacks . | . . . . . Recycling Unit Hacks . | . . . . . Scanalyzer . | . . . . . Garrison Access Hacks . | . . . . . Unauthorized Hacks 12 | . 12 . . . Terminals 11 | . 11 . . . Track 2 | . 2 . . . Assimilate 3 | . 3 . . . Botnet 4 | . 4 . . . Disrupt 1 | . 1 . . . Operators 1 | . 1 . . . Fabricators . | . . . . . Repair Stations . | . . . . . Recycling Units 1 | . 1 . . . Tunnel 1 | . 1 . . . Scanalyzers . | . . . . . Garrison Access . | . . . . . Data Cores Recovered . | . . . . . Used . | . . . . . Hacking Detections 7 | . 7 . . . Full Trace Events 1 | . 1 . . . Feedback Events . | . . . . . Feedback Blocked . | . . . . . Robot Schematics Acquired . | . . . . . Robots Built . | . . . . . Matter . | . . . . . Time . | . . . . . Total Robot Build Rating . | . . . . . Part Schematics Acquired 2 | . 2 . . . Parts Built . | . . . . . Matter . | . . . . . Time . | . . . . . Total Part Build Rating . | . . . . . Parts Repaired . | . . . . . Time . | . . . . . Parts Recycled . | . . . . . Recycled Matter . | . . . . . Retrieved Matter . | . . . . . Retrieved Components . | . . . . . Parts Scanalyzed . | . . . . . Part Schematics Acquired . | . . . . . Parts Damaged . | . . . . . Bothacking | -11 -10 -10 -10 -9 ------------ Run | Scr Mat Min Exi Min Used RIF Installer . | . . . . . Robots Hacked . | . . . . . Non-combat . | . . . . . Combat . | . . . . . Robot Hacks Applied . | . . . . . Relay Couplers Released . | . . . . . Robots Rewired . | . . . . . Allies Hacked . | . . . . . Hacks Repelled . | . . . . . Allies | -11 -10 -10 -10 -9 -------- Run | Scr Mat Min Exi Min Total Allies 3 | . 3 . . . Largest Group 3 | . 3 3 1 1 Highest-Rated Group 30 | . 30 30 9 9 Highest-Rated Ally 10 | . 10 10 9 9 Total Orders 16 | . 14 2 . . STAY 5 | . 4 1 . . GOTO 2 | . 2 . . . FOLLOW 9 | . 8 1 . . Ally Attacks . | . . . . . Total Damage . | . . . . . Kills . | . . . . . Allies Corrupted . | . . . . . Allies Melted . | . . . . . Intel | -11 -10 -10 -10 -9 ------- Run | Scr Mat Min Exi Min Robot Analysis Total . | . . . . . Derelict Logs Recovered 1 | . . 1 . . Drone Launches . | . . . . . Drone Recoveries . | . . . . . Exploration | -11 -10 -10 -10 -9 ------------- Run | Scr Mat Min Exi Min Turns Passed 2891 | 181 1732 462 411 105 Spaces Moved 1380 | 108 798 215 227 32 Core . | . . . . . Treads 1103 | . 629 215 227 32 Legs 19 | 19 . . . . Wheels 258 | 89 169 . . . Hover . | . . . . . Flight . | . . . . . Fastest Speed 80 | 80 80 180 180 180 Average Speed 159 | 87 157 180 180 180 Slowest Speed 180 | 120 180 180 180 180 Overloaded Moves . | . . . . . Propulsion Burnouts . | . . . . . Robots Hopped . | . . . . . Cave-ins Triggered . | . . . . . Exploration Rate (%) 41 | 4 95 42 55 11 Regions Visited 4 Branch Regions 3 Pre-discovered Areas 3 | . 1 1 1 . Known Exits Taken . | . . . . . Unknown Exits Taken 4 | 1 1 1 1 . Scrap Searched 2 | . . 2 . . Spaces Dug 7 | . 7 . . . Terrain Destroyed 8 | . 8 . . . Melee . | . . . . . Projectile 8 | . 8 . . . AOE . | . . . . . Actions | -11 -10 -10 -10 -9 --------- Run | Scr Mat Min Exi Min Total 1853 | 160 1164 245 232 52 Wait 272 | . 263 5 . 4 Move 1376 | 107 797 214 226 32 Hop . | . . . . . Pick Up 27 | 10 16 . 1 . Fast Attach 4 | 2 2 . . . Attach 4 | 1 3 . . . Detach 3 | 1 2 . . . Swap 14 | 1 11 . 2 . Drop 24 | 10 11 . 3 . Fire 127 | 28 59 25 . 15 Melee . | . . . . . Ram . | . . . . . Kick . | . . . . . Crush 2 | . . 1 . 1 Escape Stasis . | . . . . . Rewire . | . . . . . Trap . | . . . . . Miscellaneous . | . . . . . Route ------- -11/Scrapyard -10/Materials (discovered 4 exits: [*Mat x3] / [*Min]) -10/Mines (discovered 2 exits: [*Mat] / *Exi) -10/Exiles -9/Mines History --------- Turn | Location | Event 20 | -11/Scrapyard | Discovered new exit (range 2) 182 | -11/Scrapyard | Entered Materials 307 | -10/Materials | Discovered new exit (range 6) 339 | -10/Materials | Build established: Mutant 583 | -10/Materials | Core integrity fell below 50% 847 | -10/Materials | Discovered new exit (range 15) 1119 | -10/Materials | Central database locked down 1357 | -10/Materials | Discovered new exit (range 15) 1754 | -10/Materials | Discovered new exit (range 11) 1914 | -10/Materials | Entered Mines 1914 | -10/Mines | Accompanied by 3 allies 1970 | -10/Mines | Met a Derelict bent on vengeance 2043 | -10/Mines | Discovered new exit (range 8) 2069 | -10/Mines | Core integrity fell below 20% 2182 | -10/Mines | Learned location of Recycling (-9) 2369 | -10/Mines | Deemed a non-threat by the Exiles lab entrance 2369 | -10/Mines | Discovered new exit (range 5) 2376 | -10/Mines | Entered Exiles 2376 | -10/Exiles | Accompanied by 1 ally 2420 | -10/Exiles | Met 8R-AWN 2450 | -10/Exiles | Met EX-HEX 2537 | -10/Exiles | Met EX-DEC 2567 | -10/Exiles | Learned location of Zion (-6) 2767 | -10/Exiles | Discovered new exit (range 12) 2787 | -10/Exiles | Entered Mines 2787 | -9/Mines | Accompanied by 1 ally 2892 | -9/Mines | Destroyed by B-36 Bruiser with Hammer Last Messages --------------- 02835_ G-47 Trooper destroyed. 02838_ Slammed into G-34 Mercenary. 02839_ Acquired 39 matter. 02839_ G-34 Mercenary destroyed. 02840_ Acquired 7 matter. 02843_ Acquired 2 matter. 02853_ G-34 Mercenary destroyed. 02853_ K-01 Serf collects debris. 02856_ G-34 Mercenary destroyed. 02857_ K-01 Serf collects debris. 02859_ Acquired 26 matter. 02860_ K-01 Serf collects debris. 02868_ R-06 Scavenger collects Hacking Suite. 02871_ K-01 Serf collects debris. 02875_ Acquired 28 matter. 02878_ K-01 Serf collects debris. 02878_ R-06 Scavenger collects Aluminum Leg. 02881_ R-06 Scavenger collects Heat Sink. 02885_ R-06 Scavenger collects Aluminum Leg. 02888_ K-01 Serf collects debris. Map ----- +----------------------------------------------------+ | ?????????????????????????????????????????????????? | | ?????????????????????????????????????????????????? | | ?????????????????????????????????????????????????? | | ?????????????????????????????????????????????????? | | ?????????????????????????????????????????????????? | | ?????????????????????????????????????????????????? | | ?????????????????????????????????????????????????? | | ?????????????????????????????????????????????????? | | ?????????????????????????????????????????????????? | | ?????????????????????????????????????????????????? | | ?????????????????????????????????????????????????? | | ?????????????????????????????????????????????????? | | ????????????????????????????????#????????????????? | | ????????????????????????????????# ???????????????? | | ???????????????????????####????## ???????????????? | | ??????????????????????? #????# ?????####??????? | | ??????????????????????? #????# ????## ##?????? | | ???????????????????????# #????# ????# #?????? | | ???????????????????????# #????# ????# #?????? | | ???????????????????????# u#????# ???## ##?????? | | ???????????????????????#% #???## #### ##??????? | | ???????????????????????# #???# ##??????? | | ???????????????????????# #???# """ #??????? | | ???????????????????????# #???## """ #??????? | | ???????????????????????# b#????### """ ##??????? | | ????????????????????#### @######## ##???????? | | ??????????????## #### ## #????????? | | ??????????????# tt ! r## ##### ##????????? | | ??????????????# * k## #???## #?????????? | | ??????????????# ### [%!*##*#????## ##?????????? | | ??????????????#???# [%=%[=#??????###??????????? | | ??????????????????# =#####???????????????????? | | ??????????????????### ####???????????????????????? | | ????????????????????# ???????????????????????????? | | ????????????????????# ???????????????????????????? | | ????????????????????##???????????????????????????? | | ?????????????????????????????????????????????????? | | ?????????????????????????????????????????????????? | | ?????????????????????????????????????????????????? | | ?????????????????????????????????????????????????? | | ?????????????????????????????????????????????????? | | ?????????????????????????????????????????????????? | | ?????????????????????????????????????????????????? | | ?????????????????????????????????????????????????? | | | | | | | | | | | | | +----------------------------------------------------+ Best States ------------- Heat Dissipation 25 Energy Generation 14 Energy Capacity 250 Matter Stores 300 Matter Capacity 300 Sight Range 16 Terrain Scan Density 10 Evasion (%) 44 Recoil Reduction 2 Item Schematics ----------------- Hcp. Storage Unit | -10/Materials | Hacked Hcp. Battery | -10/Materials | Hacked Robot Schematics ------------------ None Fabricated ------------ Nothing Alien Tech Used ----------------- None Achievements -------------- None Challenges ------------ None Game ------ Seed CompositeTransmissionSuite Manual? 0 Play Time 00:21:48 Cumulative 235.3 hours Start 2020.06.25 @ 12:43:08 End 2020.06.25 @ 13:04:45 Sessions 1 Manual Loads 0 Difficulty Rogue Special Mode None Game No. 309 Rogue 298 Adventurer 11 Explorer 0 Win Type - Total 0 Types 0/0/0/0/0/0/0 Lore% 53 Gallery% 67 Achievement% 46 Wizard Run 0 Options --------- ASCII 0 Keyboard 1 Movement Numpad Keybinds 0 Fullscreen 1 Font 12/Terminus Map View 83x54 Tactical HUD 1 Map Filters NONE Filters NONE Steam 1 RUN: 486ca7be-add8-4547-ba03-fe26af9b5237